fUSD/lending_fUSD_20240121
["ID","MTS","AMOUNT","RATE_DAILY","PERIOD"]
[312374699,1705843838573,-155.69386915,0.00022995,2]
[312374701,1705843838582,-503.04874079,0.00022995,2]
[312374703,1705843838591,-372.59817034,0.00022995,2]
[312374705,1705843838600,-554.2233141,0.00022995,2]
[312374708,1705843838610,-19176.88701273,0.00022995,2]
[312374709,1705843838619,-1041.63971272,0.00022995,2]
[312374711,1705843838629,-1748.00258789,0.00022995,2]
[312374713,1705843838640,-155.0,0.00022995,2]
[312374715,1705843838649,-376.32760163,0.00022995,2]
[312374718,1705843838659,-354.2584703,0.00022995,2]
[312374720,1705843838668,-301.25336037,0.00022996,2]
[312374722,1705843838677,-178.55338146,0.00022996,2]
[312374724,1705843838688,-941791.88455896,0.00022997,2]
[312374725,1705843838697,-386.24208507,0.00022998,2]
[312374727,1705843838707,-343.7059973,0.00022998,2]
[312374729,1705843838716,-293.64604086,0.00022998,2]
[312374746,1705843838853,-155.32990661,0.00022998,2]
[312374748,1705843838863,-256.14004964,0.00022998,2]
[312374750,1705843838872,-270.28714603,0.00022998,2]
[312374752,1705843838881,-285.40909205,0.00022998,2]
[312374754,1705843838890,-212.47834316,0.00022998,2]
[312374756,1705843838899,-3185.62367316,0.00022998,2]
[312374758,1705843838908,-210.6814645,0.00022998,2]
[312374760,1705843838918,-376.54658441,0.00022998,2]
[312374762,1705843838927,-400.25276388,0.00022998,2]
[312374764,1705843838935,-156.74679107,0.00022998,2]
[312374766,1705843838944,-164.66866401,0.00022998,2]
[312374768,1705843838954,-546.59727466,0.00022998,2]
[312374770,1705843838963,-155.9906827,0.00022998,2]
[312374772,1705843838972,-436.58,0.00022998,2]
[312374774,1705843838981,-659.39103668,0.00022998,2]
[312374776,1705843838990,-155.40328076,0.00022998,2]
[312374778,1705843838999,-214.25314506,0.00022998,2]
[312374780,1705843839010,-2704.17548496,0.00022998,2]
[312374782,1705843839019,-448.84717439,0.00022998,2]
[312374784,1705843839028,-325.82630838,0.00022998,2]
[312374786,1705843839037,-318.71536209,0.00022998,2]
[312374788,1705843839046,-4624.96257004,0.00022998,2]
[312374789,1705843839055,-571.26644582,0.00022998,2]
[312374790,1705843839065,-155.49445033,0.00022998,2]
[312374791,1705843839074,-1347.63284048,0.00022998,2]
[312374792,1705843839083,-500.0,0.00022998,2]
[312374793,1705843839092,-1774.6912022,0.00022999,2]
[312374794,1705843839100,-182707.43448161,0.00022999,2]
[312374795,1705843839109,-1606.4057795,0.00023,2]
[312374796,1705843839118,-798643.43634991,0.00023,3]
[312374797,1705843839127,-2131684.13586715,0.00023,2]
[312374849,1705843839604,-304.77074147,0.00023,2]
[312374853,1705843839631,-5852.94007926,0.00023,2]
[312374856,1705843839643,-8225.83403836,0.00023,2]
[312374859,1705843839662,-460.89446664,0.00023,2]
[312374861,1705843839674,-254.99999,0.00023,2]
[312374866,1705843839710,-86118.76298296,0.00023,2]
[312374869,1705843839734,-7576.64070341,0.00023,2]
[312374873,1705843839763,-2027.30141711,0.00023,2]
[312374875,1705843839774,-349.8200102,0.00023,2]
[312374878,1705843839785,-7372.25454139,0.00023,2]
[312374982,1705843840697,-631.46799349,0.00023,2]
[312374984,1705843840709,-756.80456047,0.00023,2]
[312374986,1705843840725,-1287.4455909,0.00023,2]
[312375015,1705843840973,-107688.81186231,0.00023,2]
[312375018,1705843840999,-3519.39923127,0.00023,2]
[312375023,1705843841032,-2409.35153101,0.00023,2]
[312375027,1705843841060,-10948.60270465,0.00023,2]
[312375030,1705843841087,-16611.18285516,0.00023,2]
[312375057,1705843841323,-202935.64000799,0.00023,2]
[312375179,1705843842657,-3609.63733075,0.00023,2]
[312375182,1705843842676,-75725.5244412,0.00023,2]
[312375188,1705843842721,-432.00617712,0.00023,2]
[312375196,1705843842912,-2434.93162961,0.00023,2]
[312375197,1705843842927,-17552.56163292,0.00023,2]
[312375198,1705843842940,-2375.11275444,0.00023,2]
[312375199,1705843842952,-724.18657563,0.00023,2]
[312375200,1705843842966,-948.4779212,0.00023,2]
[312375201,1705843842987,-1090.25048855,0.00023,2]
[312375203,1705843843002,-52239.96396954,0.00023,2]
[312375206,1705843843013,-1951.70344894,0.00023,2]
[312375208,1705843843024,-448.45930792,0.00023,2]
[312375209,1705843843036,-914.03333067,0.00023,2]
[312375211,1705843843058,-495.48231012,0.00023,2]
[312375214,1705843843072,-748.63230573,0.00023,2]
[312375215,1705843843083,-250.0,0.00023,2]
[312375216,1705843843094,-327.25519082,0.00023,2]
[312375217,1705843843105,-374.72962927,0.00023,2]
[312375218,1705843843116,-293.80853246,0.00023,2]
[312375219,1705843843127,-1228.53770147,0.00023,2]
[312375220,1705843843140,-419.87653924,0.00023,2]
[312375221,1705843843160,-9092.90425632,0.00023,2]
[312375222,1705843843174,-261687.44298568,0.00023,2]
[312375223,1705843843185,-2277.75955266,0.00023,2]
[312375224,1705843843196,-321.16475274,0.00023,2]
[312375225,1705843843227,-535.43216945,0.00023,2]
[312375240,1705843845700,-555.72985012,0.00023,2]
[312375241,1705843845864,-3595.03572996,0.00023,2]
[312375242,1705843845875,-2248.46080941,0.00023,2]
[312375243,1705843845887,-3191.45056,0.00023,2]
[312375244,1705843845898,-8552.7044,0.00023,2]
[312375245,1705843845908,-547.62,0.00023,2]
[312375246,1705843845919,-895.365,0.00023,2]
[312375247,1705843845938,-113408.58166531,0.00023,2]
[312375248,1705843845949,-7488.76465014,0.00023,2]
[312375329,1705844703293,-384.862731,0.00019794,2]
[312375336,1705844711985,1769.06243771,0.00019794,2]
[312375341,1705844763796,-560.96384651,0.00019795,2]
[312375342,1705844775433,213.73,0.00019356,2]
[312375348,1705844813847,465.51323619,0.00018398,2]
[312375359,1705844850655,435.58233047,0.00019356,2]
[312375387,1705845011267,205.41636714,0.00036261,30]
[312375411,1705845031783,-447.56799732,0.00020468,2]
[312375412,1705845031793,-153.3136744,0.000206,2]
[312375413,1705845031804,-569.98835109,0.00020697,2]
[312375415,1705845031842,-1758.91550427,0.00020697,2]
[312375416,1705845031851,-253.52788585,0.00020699,2]
[312375417,1705845031861,-155.07035606,0.000207,2]
[312375418,1705845031871,-153.3136744,0.00020983,2]
[312375419,1705845031881,-512.78,0.00021114,2]
[312375420,1705845031892,-1626.93705054,0.0002118,2]
[312375421,1705845031905,-854.88294946,0.0002118,2]
[312375422,1705845031914,-200.0,0.00021183,2]
[312375423,1705845032138,-172.57,0.00021189,2]
[312375424,1705845032165,-150.0,0.00021189,2]
[312375425,1705845032175,-489.81,0.00021194,2]
[312375426,1705845032185,-23890.0,0.00021207,2]
[312375427,1705845032194,-250.0,0.00021207,2]
[312375428,1705845032205,-2000.0,0.00021212,2]
[312375429,1705845032214,-416.0,0.0002122,2]
[312375430,1705845032224,-285.82,0.00021319,2]
[312375431,1705845032234,-153.3136744,0.00021367,2]
[312375432,1705845032243,-158.94,0.00021373,2]
[312375433,1705845032252,-285.82,0.00021378,2]
[312375434,1705845032262,-158.22,0.00021431,2]
[312375435,1705845032271,-285.82,0.00021436,2]
[312375436,1705845032280,-150.96,0.00021449,2]
[312375437,1705845032289,-150.96,0.00021477,2]
[312375438,1705845032298,-285.82,0.00021494,2]
[312375439,1705845032308,-150.96,0.00021506,2]
[312375440,1705845032318,-150.96,0.00021535,2]
[312375441,1705845032328,-285.82,0.00021553,2]
[312375442,1705845032338,-150.96,0.00021563,2]
[312375443,1705845032347,-150.96,0.00021592,2]
[312375444,1705845032357,-285.82,0.00021611,2]
[312375445,1705845032367,-213.73,0.0002162,2]
[312375446,1705845032377,-150.96,0.0002162,2]
[312375447,1705845032386,-163.11,0.00021644,2]
[312375448,1705845032395,-150.96,0.00021649,2]
[312375449,1705845032404,-285.82,0.0002167,2]
[312375450,1705845032414,-150.96,0.00021678,2]
[312375451,1705845032423,-150.96,0.00021706,2]
[312375452,1705845032432,-2441.47,0.00021724,2]
[312375453,1705845032442,-285.82,0.00021728,2]
[312375455,1705845032450,-150.96,0.00021735,2]
[312375457,1705845032459,-153.3136744,0.0002175,2]
[312375458,1705845032469,-150.96,0.00021763,2]
[312375460,1705845032481,-285.82,0.00021787,2]
[312375462,1705845032492,-150.96,0.00021792,2]
[312375464,1705845032501,-150.96,0.00021821,2]
[312375466,1705845032511,-584.0,0.00021824,2]
[312375468,1705845032520,-285.82,0.00021845,2]
[312375470,1705845032529,-150.96,0.00021849,2]
[312375472,1705845032538,-150.96,0.00021878,2]
[312375473,1705845032549,-250.0,0.000219,2]
[312375475,1705845032559,-285.82,0.00021904,2]
[312375477,1705845032568,-285.82,0.00021962,2]
[312375479,1705845032577,-176.39,0.00022,2]
[312375481,1705845032587,-257.08,0.00022,2]
[312375483,1705845032596,-285.82,0.00022021,2]
[312375485,1705845032605,-499.99,0.00022073,2]
[312375486,1705845032614,-392.87284326,0.00022078,2]
[312375488,1705845032624,-285.82,0.00022079,2]
[312375490,1705845032633,-13125.98759838,0.00022127,2]
[312375492,1705845032643,-153.3136744,0.00022133,2]
[312375494,1705845032652,-257.08,0.00022137,2]
[312375496,1705845032661,-285.82,0.00022138,2]
[312375498,1705845032669,-285.82,0.00022196,2]
[312375499,1705845032679,-158.22,0.00022237,2]
[312375502,1705845032688,-285.82,0.00022255,2]
[312375504,1705845032699,-166.51,0.00022255,2]
[312375506,1705845032708,-257.08,0.00022274,2]
[312375508,1705845032716,-285.82,0.00022313,2]
[312375510,1705845032725,-285.82,0.00022371,2]
[312375511,1705845032734,-383.99415949,0.00022411,2]
[312375512,1705845032743,-476.60643007,0.00022499,3]
[312375513,1705845032753,-153.3136744,0.00022517,2]
[312375514,1705845032762,-176.64,0.00022538,2]
[312375515,1705845032771,-336.09772468,0.00022548,2]
[312375516,1705845032781,-150.0,0.00022624,2]
[312375517,1705845032791,-18895.98090684,0.000227,2]
[312375518,1705845032800,-163.11,0.00022712,2]
[312375519,1705845032809,-512.78,0.00022758,2]
[312375520,1705845032819,-163.9,0.00022762,2]
[312375521,1705845032828,-2830.45896075,0.0002277,2]
[312375522,1705845032849,-1272.92017302,0.0002277,2]
[312375523,1705845032901,-2345.3935,0.0002277,2]
[312375524,1705845032954,-656.76219286,0.0002277,2]
[312375525,1705845033008,-285.82,0.0002243,2]
[312375526,1705845033018,-1544.46517337,0.0002277,2]
[312375527,1705845033027,-5202.4581,0.000228,2]
[312375528,1705845033037,-262.39905495,0.00022898,2]
[312375529,1705845033048,-174.18094505,0.00022898,2]
[312375530,1705845033058,-546.59727466,0.00022898,2]
[312375531,1705845033067,-164.66866401,0.00022898,2]
[312375532,1705845033077,-156.74679107,0.00022898,2]
[312375533,1705845033086,-277.85164545,0.00022898,2]
[312375534,1705845033175,-122.40111843,0.00022898,2]
[312375535,1705845033184,-376.54658441,0.00022898,2]
[312375536,1705845033193,-393.999427,0.00022898,2]
[312375537,1705845033202,-476.25273251,0.00022898,2]
[312375538,1705845033211,-214.25314506,0.00022899,2]
[312375539,1705845033220,-155.9906827,0.00022899,2]
[312375540,1705845033229,-357.97165141,0.00022899,2]
[312375541,1705845033240,-1472.97,0.00022899,2]
[312375545,1705845037820,-259.56812837,0.00022899,2]
[312375546,1705845037831,-613.66570518,0.00022899,2]
[312375547,1705845037841,-181.93400185,0.00022899,2]
[312375548,1705845037928,-392.0,0.00022899,2]
[312375549,1705845037940,-85.45703483,0.00022899,2]
[312375550,1705845037949,-155.40328076,0.00022899,2]
[312375551,1705845037959,-1778.93968441,0.000229,2]
[312375552,1705845037970,-1207.6,0.000229,2]
[312375553,1705845037982,-744.73221559,0.000229,2]
[312375554,1705845037991,-331.96778441,0.000229,2]
[312375555,1705845038002,-305.51235568,0.000229,2]
[312375556,1705845038019,-307.40360557,0.000229,2]
[312375557,1705845038030,-633.3355032,0.000229,2]
[312375558,1705845038042,-3332.97664968,0.000229,2]
[312375559,1705845038054,-10667.41030146,0.000229,2]
[312375560,1705845038063,-1187.18143983,0.000229,2]
[312375561,1705845038074,-9782.02546017,0.000229,2]
[312375562,1705845038083,-3851.6237,0.000229,2]
[312375563,1705845038093,-585.16252947,0.000229,2]
[312375564,1705845038102,-585.16252947,0.000229,2]
[312375565,1705845038111,-1000.0,0.000229,2]
[312375566,1705845038120,-154.4839141,0.000229,2]
[312375567,1705845038130,-2207.08009584,0.000229,2]
[312375568,1705845038139,-332.0457723,0.000229,2]
[312375569,1705845038148,-153.3136744,0.000229,2]
[312375570,1705845038157,-1103.97573356,0.00022998,3]
[312375571,1705845038167,-27892.59263103,0.00022998,2]
[312375572,1705845038176,-155.49445033,0.00022998,2]
[312375573,1705845038185,-571.26644582,0.00022998,2]
[312375574,1705845038194,-4624.96257004,0.00022998,2]
[312375575,1705845038203,-318.71536209,0.00022998,2]
[312375576,1705845038213,-325.82630838,0.00022998,2]
[312375577,1705845038222,-448.84717439,0.00022998,2]
[312375578,1705845038231,-210.6814645,0.00022998,2]
[312375579,1705845038240,-293.64604086,0.00022998,2]
[312375580,1705845038249,-212.47834316,0.00022998,2]
[312375581,1705845038258,-256.14004964,0.00022998,2]
[312375582,1705845038267,-2907.65362789,0.00022998,2]
[312375590,1705845038340,-277.97004527,0.00022998,2]
[312375592,1705845038349,-155.32990661,0.00022998,2]
[312375594,1705845038359,-270.28714603,0.00022998,2]
[312375596,1705845038368,-134.29605639,0.00022998,2]
[312375603,1705845038423,-151.11303566,0.00022998,2]
[312375605,1705845038433,-248.5994968,0.00022998,2]
[312375608,1705845038444,-95.1065005,0.00022998,2]
[312375610,1705845038454,-414.91,0.00022998,2]
[312375612,1705845038463,-13.54030964,0.00022999,2]
[312375615,1705845038488,-486.75911274,0.00022999,2]
[312375617,1705845038497,-500.0,0.00022999,2]
[312375619,1705845038508,-685.09346644,0.00023,3]
[312375621,1705845038518,-1606.4057795,0.00023,2]
[312375623,1705845038527,-27652.57587548,0.00023,3]
[312375625,1705845038538,-27812.41946897,0.00023,3]
[312375627,1705845038551,-61040.09085862,0.00023,3]
[312375630,1705845038563,-165939.15777279,0.00023,3]
[312375632,1705845038574,-246619.15655761,0.00023,3]
[312375636,1705845038602,-570.52713711,0.00023,3]
[312375638,1705845038614,-715011.32459784,0.00023,3]
[312375640,1705845038623,-4236900.63731784,0.00023,2]
[312375642,1705845038634,-242216.56658432,0.00023,2]
[312375832,1705845040338,-1244.088,0.00023,2]
[312375851,1705845040610,-1288.47644143,0.00023,2]
[312375896,1705845041046,-110902.27087448,0.00023,2]
[312375898,1705845041058,-321.88887296,0.00023,2]
[312375900,1705845041070,-500.0,0.00023,2]
[312375905,1705845041107,-397.63098387,0.00023,2]
[312375952,1705845041544,-528.5269001,0.00023,2]
[312375954,1705845041558,-297.1035,0.00023,2]
[312375957,1705845041572,-769.22529467,0.00023,2]
[312375959,1705845041585,-629.64240114,0.00023,2]
[312375962,1705845041604,-304.27810018,0.00023,2]
[312375964,1705845041615,-10539.86459514,0.00023,2]
[312375972,1705845041673,-45803.29078146,0.00023,2]
[312375974,1705845041685,-331.63193735,0.00023,2]
[312375976,1705845041697,-1779.28274773,0.00023,2]
[312375979,1705845041708,-1231.72244051,0.00023,2]
[312376113,1705845042874,-112525.33578151,0.00023,2]
[312376115,1705845042887,-1750.08934919,0.00023,2]
[312376117,1705845042898,-443.07349567,0.00023,2]
[312376123,1705845042933,-37807.3862916,0.00023,2]
[312376139,1705845043086,-2995.94360002,0.00023,2]
[312376142,1705845043098,-7616.84443699,0.00023,2]
[312376144,1705845043113,-5214.07871839,0.00023,2]
[312376147,1705845043125,-6015.52000002,0.00023,2]
[312376152,1705845043166,-4626.67793979,0.00023,2]
[312376154,1705845043179,-4554.70727346,0.00023,2]
[312376157,1705845043192,-1630.70529645,0.00023,2]
[312376457,1705845046233,-191.35819916,0.000229,4]
[312376459,1705845046242,-12850.04823365,0.00023,2]
[312376462,1705845046254,-1322.68616832,0.00023,2]
[312376464,1705845046265,-3068.83838947,0.00023,2]
[312376500,1705845046594,-3037.35264454,0.00023,2]
[312377044,1705845051905,300.0,0.00018399,2]
[312377675,1705845080029,3466.06227411,0.00018399,2]
[312377676,1705845080404,937.091962,9e-05,2]
[312377762,1705845254209,1004.98443577,0.00036261,120]
[312377771,1705845310612,1761.330171,0.00019899,2]
[312377876,1705845438177,155.88909857,0.000199,2]
[312377963,1705845659807,230.69,0.00019831,2]
[312377976,1705845953996,167.15541318,0.00018398,2]
[312377977,1705845955050,274.47186855,0.00019831,2]
[312377978,1705845957551,155.10317735,0.00019831,2]
[312377980,1705845974361,259.81452361,0.00019831,2]
[312377982,1705845993733,211.67409075,0.00019831,2]
[312377983,1705845998525,238.35151478,0.00018398,2]
[312377984,1705846022846,13609.58649293,0.00018398,2]
[312377985,1705846022876,7384.86231,0.00018398,2]
[312377986,1705846022899,7384.86231,0.00018398,2]
[312377987,1705846022922,7384.86231,0.00018398,2]
[312377988,1705846022945,7384.86231,0.00018398,2]
[312377989,1705846022969,6993.09798501,0.00018398,2]
[312377990,1705846038755,391.76432499,0.00018398,2]
[312377991,1705846038777,7384.86231,0.00018398,2]
[312377992,1705846038802,21223.76,0.00018398,2]
[312377993,1705846038832,500.0,0.00018398,2]
[312377994,1705846038857,2000.0,0.00018398,2]
[312377995,1705846038878,2000.0,0.00018398,2]
[312377996,1705846038900,2000.0,0.00018398,2]
[312377997,1705846038920,2000.0,0.00018398,2]
[312377998,1705846038940,2000.0,0.00018398,2]
[312377999,1705846038961,2000.0,0.00018398,2]
[312378000,1705846038981,111.61336493,0.00018398,2]
[312378004,1705846102735,300.49953963,0.00031,120]
[312378011,1705846232018,-155.0,0.00019978,2]
[312378012,1705846232028,-388.83,0.00019979,2]
[312378013,1705846232072,-233.57615561,0.00019979,2]
[312378014,1705846232082,-155.0,0.00021645,2]
[312378015,1705846232091,-250.0,0.00021646,2]
[312378016,1705846232101,-185.91,0.00021646,2]
[312378017,1705846232110,-163.11,0.00021683,2]
[312378018,1705846232119,-482.24,0.00021696,2]
[312378019,1705846232128,-667.2,0.00021697,2]
[312378020,1705846232138,-332.8,0.00021719,2]
[312378021,1705846232147,-300.0,0.0002172,2]
[312378022,1705846232157,-150.0,0.0002172,2]
[312378023,1705846232166,-4578.0,0.00021721,2]
[312378024,1705846232175,-2000.0,0.00021721,2]
[312378025,1705846232184,-159.15,0.0002185,2]
[312378026,1705846232193,-250.0,0.000219,2]
[312378027,1705846232203,-177.62,0.00021968,2]
[312378028,1705846232213,-1396.74209083,0.00022,2]
[312378029,1705846232223,-150.0,0.00022,2]
[312378030,1705846232231,-150.54339926,0.00022,2]
[312378031,1705846232240,-235.89308219,0.00022,2]
[312378032,1705846232250,-150.0,0.00022,2]
[312378033,1705846232259,-158.89,0.00022002,2]
[312378034,1705846232269,-610.5,0.00022077,2]
[312378035,1705846232279,-159.15,0.00022078,2]
[312378036,1705846232288,-181.21,0.00022244,2]
[312378037,1705846232297,-159.15,0.00022306,2]
[312378038,1705846232307,-159.15,0.00022534,2]
[312378039,1705846232316,-499.99,0.000227,2]
[312378040,1705846232325,-159.15,0.00022761,2]
[312378041,1705846232335,-3507.01823036,0.00022768,2]
[312378042,1705846232345,-961.11268643,0.000228,3]
[312378043,1705846232354,-2115.3493,0.000228,2]
[312378044,1705846232364,-6972.1954,0.00022899,2]
[312378045,1705846232373,-2500.0,0.00022899,2]
[312378047,1705846232383,-16888.095,0.000229,2]
[312378049,1705846232392,-5000.0,0.000229,2]
[312378051,1705846232401,-1000.0,0.000229,2]
[312378052,1705846232410,-220.82773707,0.000229,2]
[312378053,1705846232420,-155.88909856,0.000229,2]
[312378054,1705846232429,-1460.23851309,0.000229,2]
[312378055,1705846232438,-154.4839141,0.000229,2]
[312378056,1705846232448,-214.42263125,0.000229,2]
[312378057,1705846232457,-55555.0,0.000229,2]
[312378058,1705846232467,-4335.23860902,0.000229,2]
[312378059,1705846232478,-209.66429938,0.000229,2]
[312378060,1705846232489,-1460.23851308,0.00022902,2]
[312378061,1705846232498,-1460.23851308,0.00022905,2]
[312378062,1705846232508,-1460.23851308,0.00022907,2]
[312378063,1705846232519,-1460.23851308,0.00022909,2]
[312378064,1705846232528,-1460.23851308,0.00022912,2]
[312378065,1705846232539,-1460.23851308,0.00022914,2]
[312378066,1705846232548,-1460.23851308,0.00022917,2]
[312378067,1705846232558,-4335.23860902,0.00022918,2]
[312378068,1705846232567,-1460.23851308,0.00022919,2]
[312378069,1705846232577,-1460.23851308,0.00022921,2]
[312378070,1705846232588,-1460.23851308,0.00022924,2]
[312378071,1705846232599,-1460.23851308,0.00022926,2]
[312378072,1705846232608,-4335.23860902,0.00022936,2]
[312378073,1705846232618,-159.15,0.00022989,2]
[312378074,1705846232627,-2599.97724038,0.00022997,3]
[312378075,1705846232637,-203.40048379,0.00022997,2]
[312378076,1705846232646,-272.70285425,0.00022997,2]
[312378077,1705846232656,-196.91428267,0.00022997,2]
[312378078,1705846232665,-246.50580772,0.00022997,2]
[312378079,1705846232675,-6866.65745499,0.00022997,2]
[312378080,1705846232696,-2453.4112461,0.00022997,2]
[312378081,1705846232705,-360.90064478,0.00022997,2]
[312378082,1705846232713,-1546.48023014,0.00022997,2]
[312378083,1705846232723,-177.46737757,0.00022997,2]
[312378084,1705846232733,-400.49631335,0.00022997,2]
[312378085,1705846232742,-155.56021779,0.00022997,2]
[312378086,1705846232751,-9648.82835814,0.00022997,2]
[312378087,1705846232760,-337.2296826,0.00022997,2]
[312378088,1705846232769,-266.47788631,0.00022997,2]
[312378089,1705846232778,-1027.46826993,0.00022998,2]
[312378090,1705846232788,-197.40544785,0.00022998,2]
[312378091,1705846232797,-985.47024403,0.00022998,2]
[312378092,1705846232806,-1777.72441373,0.00022999,3]
[312378093,1705846232815,-182707.43448161,0.00022999,2]
[312378094,1705846232824,-2197.91931681,0.00022999,2]
[312378095,1705846232834,-190.42094481,0.00022999,2]
[312378096,1705846232843,-655.0,0.00022999,2]
[312378097,1705846232852,-803.20288975,0.00023,2]
[312378098,1705846232861,-26195.85457252,0.00023,3]
[312378099,1705846232873,-439.62247958,0.00023,3]
[312378100,1705846232884,-1881.98800468,0.00023,3]
[312378101,1705846232896,-500.7777886,0.00023,3]
[312378102,1705846232948,-208325.4465167,0.00023,3]
[312378113,1705846238015,-1157.41744958,0.00023,3]
[312378114,1705846238031,-677.48546916,0.00023,3]
[312378115,1705846238074,-31900.33689381,0.00023,3]
[312378116,1705846238086,-3290.64555306,0.00023,3]
[312378117,1705846238097,-1997.2320567,0.00023,3]
[312378118,1705846238130,-829.099827,0.00023,3]
[312378119,1705846238141,-430.0,0.00023,3]
[312378120,1705846238188,-2492.19050604,0.00023,3]
[312378121,1705846238199,-834.2478,0.00023,3]
[312378123,1705846238409,-1171143.23443118,0.00023,3]
[312378124,1705846238419,-585.0,0.00023,2]
[312378127,1705846238428,-3780183.7274845,0.00023,2]
[312378129,1705846238440,-19661.1256722,0.00023,2]
[312378131,1705846238449,-437.88134147,0.00023,2]
[312378133,1705846238459,-334485.75223041,0.00023,2]
[312378355,1705846240610,-11000.0,0.00023,2]
[312378359,1705846240635,-1036.368,0.00023,2]
[312378361,1705846240647,-738.86652529,0.00023,2]
[312378424,1705846241218,-270.1999996,0.00023,2]
[312378426,1705846241230,-1322.46730531,0.00023,2]
[312378432,1705846241276,-2762.2218025,0.00023,2]
[312378447,1705846241406,-560.0,0.00023,2]
[312378449,1705846241416,-404.9391978,0.00023,2]
[312378636,1705846243091,-610.54472259,0.00023,2]
[312378640,1705846243114,-689.93119256,0.00023,2]
[312378643,1705846243132,-3695.4,0.00023,2]
[312378647,1705846243160,-397.57408699,0.00023,2]
[312378650,1705846243177,-831.48450349,0.00023,2]
[312378653,1705846243199,-877.23058784,0.00023,2]
[312378658,1705846243241,-3210.45140551,0.00023,2]
[312378662,1705846243265,-2979.27600002,0.00023,2]
[312378664,1705846243280,-614.47878004,0.00023,2]
[312378667,1705846243297,-5738.16030534,0.00023,2]
[312378671,1705846243326,-2651.31362016,0.00023,2]
[312378675,1705846243350,-391.25088395,0.00023,2]
[312378678,1705846243367,-993.56644484,0.00023,2]
[312378683,1705846243403,-1102.24395468,0.00023,2]
[312378685,1705846243419,-4664.34268851,0.00023,2]
[312378688,1705846243436,-8884.76743054,0.00023,2]
[312378693,1705846243468,-530.24758428,0.00023,2]
[312378696,1705846243489,-375.499,0.00023,2]
[312378941,1705846246156,-155.0,0.00022999,2]
[312378984,1705846246524,-2344.16971345,0.00023,2]
[312378995,1705846246572,-524.2911787,0.00023,2]
[312379010,1705846246697,-46482.03416976,0.00023,2]
[312379012,1705846246708,-41611.99999992,0.00023,2]
[312379015,1705846246720,-26465.60023955,0.00023,2]
[312379030,1705846246850,-453.9544305,0.00023,2]
[312379032,1705846246861,-14729.14865754,0.00023,2]
[312379034,1705846246872,-11862.2832772,0.00023,2]
[312379036,1705846246885,-3595.03572996,0.00023,2]
[312379039,1705846246895,-2248.46080941,0.00023,2]
[312379041,1705846246906,-3191.45056,0.00023,2]
[312379043,1705846246917,-8552.7044,0.00023,2]
[312379045,1705846246930,-547.62,0.00023,2]
[312379047,1705846246942,-895.365,0.00023,2]
[312379050,1705846246961,-4571.27761903,0.00023,2]
[312380174,1705846675637,282.77,0.00019445,2]
[312380180,1705847072858,469.45783701,0.00019445,2]
[312380181,1705847088222,150.0,0.0001943,2]
[312380182,1705847106160,380.92,0.00018818,2]
[312380183,1705847161859,1073.822207,0.0001988,2]
[312380184,1705847337586,157.32195951,0.00019858,2]
[312380200,1705847433914,-473.54978766,0.00019942,2]
[312380202,1705847433923,-155.0,0.00019942,2]
[312380203,1705847433932,-9.24723024,0.00019942,2]
[312380205,1705847434077,-362.1013399,0.00019941,2]
[312380206,1705847434088,-693.69540958,0.00019941,2]
[312380284,1705847438257,-5.74243814,0.00019941,2]
[312380285,1705847438268,-420.16374774,0.00019941,2]
[312380286,1705847438277,-289.13231179,0.00019941,2]
[312380287,1705847438286,-1759.81520747,0.00019942,2]
[312380288,1705847438296,-879.86629486,0.00019942,2]
[312380289,1705847438320,-1319.04852,0.00019942,2]
[312380290,1705847438336,-2430.22659874,0.00019942,2]
[312380291,1705847438346,-5218.38418036,0.00019942,2]
[312380292,1705847438356,-4639.05259022,0.00019942,2]